bitfinex-derivatives/quotes_ETHF0:USTF0_20260120
["timestamp","ask_amount","ask_price","bid_price","bid_amount"]
[1768914908640,1.4968239,3095.4,3093.9,2.204]
[1768914908838,1.4968239,3095.3,3093.9,2.204]
[1768914909036,1.4968239,3095.2,3093.9,2.204]
[1768914909240,1.30136,3095.5,3093.9,2.204]
[1768914909440,1.49676722,3095.4,3093.9,2.91674262]
[1768914909644,1.49676722,3095.3,3093.9,2.91674262]
[1768914909841,1.09555126,3095.2,3093.9,2.91674262]
[1768914910044,0.16166,3095.4,3093.9,2.91674262]
[1768914910340,1.49597559,3095.3,3093.9,2.91674262]
[1768914910541,0.16166,3095.4,3093.9,2.91674262]
[1768914910842,1.49596788,3095.3,3093.9,2.91674262]
[1768914911043,0.16166,3095.4,3093.9,2.91674262]
[1768914911248,1.49577133,3095.3,3093.9,2.91674262]
[1768914911447,0.16166,3095.4,3093.9,2.91674262]
[1768914911637,1.49575328,3095.3,3093.9,2.91674262]
[1768914911833,0.16166,3095.4,3093.9,2.91674262]
[1768914912038,1.09459763,3095.3,3094.0,0.71274262]
[1768914912247,0.16166,3095.4,3094.0,0.71274262]
[1768914914539,1.49088226,3095.3,3093.5,4.55136325]
[1768914914738,0.16168,3095.1,3093.6,0.71274262]
[1768914915043,0.16168,3095.1,3093.4,0.00279185]
[1768914915044,0.1617,3094.8,3093.4,2.20479185]
[1768914915240,0.16172,3094.3,3093.4,0.00279185]
[1768914915444,1.49012818,3094.2,3093.4,0.00279185]
[1768914915643,1.49012818,3094.1,3093.4,0.00279185]
[1768914915940,0.16169,3094.9,3093.4,0.71553447]
[1768914916143,1.49027483,3094.8,3093.4,0.71553447]
[1768914916343,1.49027483,3094.7,3093.4,0.71553447]
[1768914916542,1.49027483,3094.6,3093.4,0.71553447]
[1768914916742,1.08957301,3094.5,3093.4,0.71553447]
[1768914917042,0.16475294,3094.9,3093.7,1.93986608]
[1768914917248,1.48213871,3094.8,3093.7,1.93986608]
[1768914917544,1.0819602,3094.7,3093.8,0.71274262]
[1768914917751,0.00306294,3094.9,3094.0,1.22712346]
[1768914918047,1.1397,3095.5,3094.0,1.22712346]
[1768914918048,1.1397,3095.5,3094.3,1.22712346]
[1768914918243,1.1397,3095.5,3094.3,0.71274262]
[1768914918545,1.1397,3095.5,3094.7,1.22712346]
[1768914919044,1.14282156,3095.5,3094.7,1.22712346]
[1768914919547,0.16162,3096.3,3095.0,1.93986608]
[1768914919749,1.47780767,3096.2,3095.0,1.93986608]
[1768914919940,1.47780767,3096.1,3095.0,1.93986608]
[1768914920141,1.07745217,3096.0,3095.0,1.93986608]
[1768914920342,0.16162,3096.3,3095.0,1.93986608]
[1768914920542,1.47759527,3096.2,3095.0,0.71274262]
[1768914920749,1.47759527,3096.1,3095.0,0.71274262]
[1768914921052,0.16562391,3096.3,3095.0,0.71274262]
[1768914921242,1.47758128,3096.2,3095.0,0.71274262]
[1768914921446,1.47758128,3096.1,3095.0,0.71274262]
[1768914921648,0.16562391,3096.3,3095.0,0.71274262]
[1768914921948,1.47731755,3096.2,3095.0,0.71274262]
[1768914922149,1.47731755,3096.1,3095.0,0.71274262]
[1768914922450,0.16562391,3096.3,3094.2,0.71274262]
[1768914922648,1.47712696,3096.2,3094.2,0.71274262]
[1768914922842,1.47712696,3096.1,3094.2,0.71274262]
[1768914923041,0.7222,3096.1,3094.2,0.71274262]
[1768914923450,1.7287132,3096.1,3094.3,5.371]
[1768914923643,1.07684502,3096.0,3094.3,5.371]
[1768914923843,1.7287132,3096.1,3094.3,6.24046889]
[1768914924043,1.7287132,3096.1,3094.4,0.86946889]
[1768914924649,0.88383,3096.1,3094.4,0.86946889]
[1768914931545,0.88383,3096.1,3094.6,0.86946889]
[1768914934963,0.88383,3096.1,3094.7,0.86946889]
[1768914940864,0.88383,3096.1,3095.1,1.22575504]
[1768914942165,0.88383,3096.1,3095.1,2.09522393]
[1768914943869,0.88383,3096.1,3095.1,1.22575504]
[1768914944473,0.88383,3096.1,3094.7,0.98203353]
[1768914944665,0.88383,3096.1,3095.1,1.22575504]
[1768914945669,0.88383,3096.1,3095.1,2.20778857]
[1768914945976,0.7222,3096.1,3095.4,2.20778857]
[1768914946872,0.7222,3096.1,3095.4,1.22575504]
[1768914949874,0.7222,3096.1,3095.1,1.22575504]
[1768914951276,0.7222,3096.1,3095.2,1.22575504]
[1768914957976,0.7222,3096.1,3095.1,1.22575504]
[1768914958684,0.7222,3096.1,3094.9,0.95304473]
[1768914958881,0.7222,3096.1,3095.0,2.193]
[1768914960084,0.00400391,3096.3,3095.0,2.193]
[1768914960382,0.00400391,3096.3,3095.1,1.22575504]
[1768914960773,0.00400391,3096.3,3095.1,2.17879977]
[1768914960981,0.00400391,3096.3,3095.4,1.22575504]
[1768914961478,0.00400391,3096.3,3095.2,0.95304473]
[1768914961778,0.00400391,3096.3,3095.2,2.17879977]
[1768914962283,0.00400391,3096.3,3095.5,1.22575504]
[1768914962481,2.30026846,3097.7,3096.1,1.22575504]
[1768914962778,1.4740348,3097.6,3096.4,2.17879977]
[1768914962977,2.16704773,3098.3,3096.7,2.17879977]
[1768914963186,1.47422618,3098.2,3096.7,0.95304473]
[1768914963485,1.22575504,3097.4,3096.7,0.00323598]
[1768914963683,1.22575504,3097.7,3096.7,0.00323598]
[1768914963986,1.46074295,3097.6,3096.7,0.00323598]
[1768914964179,0.94129269,3097.3,3095.7,0.95304473]
[1768914964379,1.22575504,3097.1,3095.7,0.95304473]
[1768914965174,1.10286269,3097.3,3095.7,0.00308111]
[1768914965377,1.22575504,3096.9,3095.7,0.00308111]
[1768914965680,1.22575504,3097.1,3095.7,0.00308111]
[1768914965879,2.16704773,3097.1,3095.7,0.00308111]
[1768914966085,1.22575504,3096.8,3095.7,0.00308111]
[1768914966387,1.22575504,3096.5,3095.7,0.00308111]
[1768914967483,1.10287269,3097.0,3095.7,0.00308111]
[1768914967788,0.39932912,3096.9,3095.7,1.22883615]
[1768914968084,0.16158,3097.0,3095.7,1.22883615]
[1768914968580,0.16158,3097.0,3095.7,0.00308111]
[1768914968886,1.38733504,3097.0,3095.7,0.00308111]
[1768914969278,1.22575504,3096.7,3095.7,0.00308111]
[1768914969891,1.10288269,3096.9,3095.7,0.00308111]
[1768914970090,1.22575504,3096.8,3095.7,0.00308111]
[1768914970891,1.10288269,3096.9,3095.7,0.00308111]
[1768914974194,0.39943835,3096.8,3095.7,0.00308111]
[1768914974387,1.10288269,3096.9,3095.7,0.00308111]
[1768914974586,0.39941684,3096.8,3095.7,0.00308111]
[1768914974781,1.10288269,3096.9,3095.7,0.00308111]
[1768914974990,0.39941733,3096.8,3095.7,0.00308111]
[1768914975190,1.10288269,3096.9,3095.7,0.00308111]
[1768914975393,0.39948,3096.8,3095.7,0.00308111]
[1768914975686,1.10288269,3096.9,3095.7,0.00308111]
[1768914975888,0.39948082,3096.8,3095.7,0.00308111]
[1768914976187,1.10288269,3096.9,3095.7,0.00308111]
[1768914976389,0.39949179,3096.8,3095.7,0.00308111]
[1768914976585,1.10288269,3096.9,3095.7,0.00308111]
[1768914976902,0.39949178,3096.8,3095.7,0.00308111]
[1768914977196,1.10288269,3096.9,3095.7,0.00308111]
[1768914977493,0.39950342,3096.8,3095.7,0.00308111]
[1768914977793,1.10288269,3096.9,3095.7,0.00308111]
[1768914977995,0.39950471,3096.8,3095.7,0.00308111]
[1768914978193,1.10288269,3096.9,3095.7,0.00308111]
[1768914978394,0.39952009,3096.8,3095.7,0.00308111]
[1768914978596,1.10288269,3096.9,3095.7,0.00308111]
[1768914978793,0.39951996,3096.8,3095.7,0.00308111]
[1768914978997,1.10288269,3096.9,3095.7,0.00308111]
[1768914979193,0.39951933,3096.8,3095.7,0.00308111]
[1768914979492,1.10288269,3096.9,3095.7,0.00308111]
[1768914979696,0.39953461,3096.8,3095.7,0.00308111]
[1768914979893,1.10288269,3096.9,3095.7,0.00308111]
[1768914980198,0.16158,3096.9,3095.7,0.00308111]
[1768914981397,1.1006,3096.8,3095.7,0.00308111]
[1768914982399,1.1006,3096.8,3095.7,0.95612584]
[1768914983500,0.16155,3097.5,3095.7,1.11776584]
[1768914983701,0.16152,3098.1,3096.1,1.22393601]
[1768914983994,0.16152,3098.1,3096.2,0.16162]
[1768914983995,1.45804796,3098.0,3096.2,0.16162]
[1768914984200,0.00280352,3098.2,3096.4,1.22392601]
[1768914984502,0.00280352,3098.2,3096.5,2.187]
[1768914984689,0.00280352,3098.2,3096.6,1.06231601]
[1768914988795,0.00280352,3098.2,3096.7,6.47931601]
[1768914989198,0.00280352,3098.2,3096.8,1.06231601]
[1768914989599,0.00280352,3098.2,3096.8,1.22390601]
[1768914991004,0.00280352,3098.2,3097.0,1.22388033]
[1768914991199,0.00280352,3098.2,3096.8,1.22390601]
[1768914992000,0.00280352,3098.2,3096.9,1.22388033]
[1768914995617,0.00280352,3098.2,3096.9,2.28619634]
[1768914999624,0.00280352,3098.2,3096.9,2.44777634]
[1768915000422,0.00280352,3098.2,3097.0,1.06231601]
[1768915000826,0.00280352,3098.2,3097.0,4.29331601]
[1768915001125,0.00280352,3098.2,3097.1,1.06231601]
[1768915001321,0.00280352,3098.2,3097.0,0.16157]
[1768915001515,1.08180659,3098.2,3096.0,4.29331601]
[1768915001823,1.08180659,3098.2,3096.1,2.182]
[1768915002822,1.24332659,3098.2,3096.1,2.182]
[1768915003019,0.16152,3098.1,3096.1,2.182]
[1768915003223,1.07531225,3098.0,3096.1,2.182]
[1768915004712,1.07531225,3097.8,3095.9,0.16163]
[1768915004916,1.07531225,3097.8,3096.0,2.182]
[1768915005119,1.07531225,3097.8,3095.9,0.16163]
[1768915005522,1.07531225,3097.6,3095.9,0.16163]
[1768915005718,1.07531225,3097.6,3095.8,2.182]
[1768915005719,1.23686225,3097.6,3095.8,2.182]
[1768915005921,1.23688225,3097.2,3095.8,2.182]
[1768915006120,1.07531225,3097.0,3095.7,0.00308111]
[1768915007223,1.07531225,3096.5,3094.8,0.16169]
[1768915007721,1.07531225,3096.5,3094.5,1.1877614]
[1768915007926,1.23692225,3096.5,3094.5,1.1877614]
[1768915008329,1.23692225,3096.5,3094.5,1.19080841]
[1768915008524,1.07531225,3096.3,3094.5,0.00304701]
[1768915008730,1.23694225,3096.1,3094.5,0.00304701]
[1768915009825,1.07531225,3095.9,3094.5,0.00304701]
[1768915010025,1.07762123,3095.9,3094.5,0.00304701]
[1768915014421,0.00230898,3095.9,3094.5,1.16264077]
[1768915014832,0.00230898,3095.9,3094.7,1.15959376]
[1768915015028,0.00230898,3095.9,3094.9,1.15959376]
[1768915015233,1.15967049,3096.7,3094.9,1.32128376]
[1768915015632,1.15967049,3096.7,3094.9,0.16169]
[1768915016334,1.16327643,3096.7,3094.9,0.16169]
[1768915017136,1.16327643,3096.7,3094.9,1.32128376]
[1768915017531,0.00360594,3096.7,3094.9,1.32128376]
[1768915017738,0.00360594,3096.7,3095.1,1.15959376]
[1768915017937,0.00360594,3096.7,3095.3,1.15959376]
[1768915020837,1.16327643,3096.7,3095.2,0.16167]
[1768915021043,1.16327643,3096.7,3094.8,1.15959376]
[1768915023038,1.16327643,3096.7,3094.9,2.18]
[1768915025339,1.16327643,3096.7,3095.0,1.15959376]
[1768915025526,0.00360594,3096.7,3095.0,1.15959376]
[1768915025728,0.00360594,3096.7,3095.3,1.15959376]
[1768915025933,0.00360594,3096.7,3095.3,1.32125376]
[1768915026129,0.00360594,3096.7,3095.5,1.15959376]
[1768915027736,0.00360594,3096.7,3095.5,1.32125376]
[1768915028037,1.15967049,3097.6,3095.7,1.15959376]
[1768915028237,1.15967049,3097.3,3095.2,1.15959376]
[1768915028430,1.32124049,3097.3,3095.3,4.524]
[1768915028842,1.15967049,3097.1,3095.3,4.524]
[1768915029542,1.32124049,3097.1,3095.3,4.524]
[1768915030252,1.32124049,3097.1,3095.4,1.15959376]
[1768915031437,1.15967049,3096.8,3094.9,3.232]
[1768915031638,1.15967049,3096.8,3095.0,2.178]
[1768915032845,1.32126049,3096.8,3095.0,2.178]
[1768915034137,0.00318771,3097.3,3094.8,1.15959376]
[1768915034138,1.32127049,3096.6,3094.8,1.15959376]
[1768915034341,1.15967049,3096.4,3094.7,2.33969]
[1768915036249,1.15967049,3096.4,3094.7,3.49928376]
[1768915036450,1.15967049,3096.4,3094.7,3.33759376]
[1768915037449,1.32128049,3096.4,3094.7,2.178]
[1768915037645,1.15967049,3096.1,3094.6,3.232]
[1768915038641,1.32130049,3096.1,3094.6,3.232]
[1768915041047,1.15967049,3096.1,3094.6,3.232]
[1768915042546,1.32128049,3096.5,3094.7,1.15959376]
[1768915042848,2.61524968,3096.4,3094.7,1.15959376]
[1768915043050,1.05706924,3096.3,3094.7,1.15959376]
[1768915044953,1.19860029,3096.8,3095.0,1.24752362]
[1768915045153,1.45721955,3096.7,3095.0,1.24752362]
[1768915045453,1.19860029,3096.8,3095.0,1.24752362]
[1768915045657,1.05829826,3096.7,3095.0,1.24752362]
[1768915045953,1.19860029,3096.8,3095.0,1.24752362]
[1768915046153,1.05745123,3096.7,3095.0,1.24752362]
[1768915046453,1.19860029,3096.8,3095.0,1.24752362]
[1768915046649,1.05745021,3096.7,3095.0,1.24752362]
[1768915046850,1.19860029,3096.8,3095.0,1.24752362]
[1768915047051,1.05745222,3096.7,3095.1,2.175]
[1768915047252,1.19860029,3096.8,3095.1,2.175]
[1768915047451,1.05744698,3096.7,3095.1,2.175]
[1768915047654,1.19860029,3096.8,3095.1,2.175]
[1768915047852,1.05744339,3096.7,3095.1,2.175]
[1768915048055,1.19860029,3096.8,3095.1,2.175]
[1768915048255,1.05744245,3096.7,3095.1,2.175]
[1768915048553,1.19860029,3096.8,3095.1,2.175]
[1768915048753,1.05749837,3096.7,3095.1,2.175]
[1768915048955,1.19860029,3096.8,3095.1,2.175]
[1768915049254,1.45652522,3096.7,3095.1,3.42252362]
[1768915049455,1.19860029,3096.8,3095.1,3.42252362]
[1768915049657,1.45658735,3096.7,3095.2,1.24752362]
[1768915049857,0.16158,3097.1,3095.2,1.40919362]
[1768915050057,1.45661919,3097.0,3095.2,1.40919362]
[1768915050263,1.45661919,3096.9,3095.2,1.24752362]
[1768915050459,1.19860029,3097.2,3095.4,1.24752362]
[1768915050661,1.45693093,3097.1,3095.4,1.24752362]
[1768915050861,1.19860029,3097.2,3095.4,1.24752362]
[1768915051051,1.19860029,3097.0,3095.4,1.24752362]
[1768915054860,1.19860029,3097.0,3095.4,1.40918362]
[1768915057967,0.00318771,3097.3,3095.9,1.24752362]
[1768915058272,0.00318771,3097.3,3096.1,1.40914362]
[1768915060663,0.00318771,3097.3,3096.2,2.177]
[1768915065169,0.00318771,3097.3,3096.2,3.53938187]
[1768915066868,0.00318771,3097.3,3096.3,1.22470786]
[1768915067063,0.00318771,3097.3,3096.3,2.58708973]
[1768915067267,0.16153,3098.0,3096.6,1.22470786]
[1768915068166,1.22470786,3097.9,3096.6,1.22470786]
[1768915068358,1.22470786,3097.9,3096.3,2.58708973]
[1768915068564,1.22470786,3097.6,3096.3,0.16161]
[1768915068765,1.22470786,3097.6,3096.3,2.27661]
[1768915068968,1.22470786,3097.6,3096.3,3.50131786]
[1768915070872,1.36542001,3097.8,3096.3,3.50131786]
[1768915072979,1.36542001,3097.8,3096.3,2.27661]
[1768915073578,1.36542001,3097.8,3096.3,3.60870364]
[1768915074967,0.16486666,3098.0,3096.4,1.33209364]
[1768915075368,1.5017584,3098.0,3096.4,1.33209364]
[1768915075778,1.5017584,3098.0,3096.4,2.173]
[1768915076376,1.5017584,3098.0,3096.3,0.16161]
[1768915079179,0.39957977,3097.9,3096.3,0.16161]
[1768915079382,1.33689174,3097.9,3096.3,0.16161]
[1768915079573,1.33689174,3097.9,3096.3,1.49370364]
[1768915081575,0.16486666,3098.0,3095.5,3.236]
[1768915081576,1.33689174,3097.5,3095.8,3.39264]
[1768915081880,1.33689174,3097.5,3095.8,2.33364]
[1768915084680,1.33689174,3097.3,3095.5,1.33209364]
[1768915084880,1.33689174,3097.3,3095.6,2.171]
[1768915086676,0.39988552,3097.2,3095.6,2.171]
[1768915086875,1.33689174,3097.1,3095.6,2.171]
[1768915092897,1.22536976,3097.0,3095.6,2.171]
[1768915093199,1.33689174,3097.1,3095.6,2.171]
[1768915093396,1.22536976,3097.0,3095.6,2.171]
[1768915093693,1.22536976,3096.7,3095.3,1.22536976]
[1768915093896,1.22536976,3096.7,3095.4,2.176]
[1768915096003,2.5622615,3096.7,3095.5,2.176]
[1768915096398,1.33689174,3096.7,3095.5,2.176]
[1768915097503,1.22536976,3096.7,3095.5,2.176]
[1768915097706,1.33689174,3096.6,3095.5,2.176]
[1768915100906,1.49847174,3097.0,3095.5,2.176]
[1768915105211,1.42983308,3096.8,3095.5,2.176]
[1768915107015,1.59143308,3096.5,3094.7,1.39876113]
[1768915107203,1.59143308,3096.5,3094.7,3.57276113]
[1768915109008,1.59143308,3096.5,3094.8,1.39876113]
[1768915111314,1.59143308,3096.5,3094.8,3.57176113]
[1768915115416,1.59143308,3096.5,3094.9,1.39876113]
[1768915120728,1.82900917,3096.4,3094.9,1.39876113]
[1768915121014,1.42983308,3096.4,3094.9,1.39876113]
[1768915122615,0.1616,3096.5,3094.9,1.39876113]
[1768915123313,0.39930803,3096.4,3094.9,1.39876113]
[1768915123620,1.61396583,3096.5,3094.9,3.56876113]
[1768915123920,0.39939154,3096.4,3094.9,3.56876113]
[1768915124121,1.61396583,3096.5,3094.9,3.56876113]
[1768915124310,0.39938945,3096.4,3094.9,3.56876113]
[1768915124514,1.61396583,3096.5,3094.9,3.56876113]
[1768915124716,1.45236583,3096.3,3094.9,2.17]
[1768915125626,1.45236583,3096.3,3094.9,3.57648237]
[1768915125925,0.1616,3096.5,3095.0,1.40648237]
[1768915126224,0.39946042,3096.4,3095.0,1.40648237]
[1768915126420,0.1616,3096.5,3095.0,1.40648237]
[1768915126612,0.39948538,3096.4,3095.0,1.40648237]
[1768915126814,0.1616,3096.5,3095.0,1.40648237]
[1768915127014,0.39943932,3096.4,3095.0,1.40648237]
[1768915127215,0.1616,3096.5,3095.0,1.40648237]
[1768915127425,0.39944107,3096.4,3095.0,1.40648237]
[1768915127626,0.1616,3096.5,3095.0,1.40648237]
[1768915127922,0.39946952,3096.4,3095.0,1.40648237]
[1768915128120,0.1616,3096.5,3095.0,1.40648237]
[1768915128310,0.39946834,3096.4,3095.0,1.40648237]
[1768915128514,0.39951063,3096.3,3095.0,1.40648237]
[1768915128716,0.1616,3096.5,3095.0,1.40648237]
[1768915128924,1.05450218,3096.4,3095.0,1.40648237]
[1768915129220,1.61396583,3096.5,3095.0,1.40648237]
[1768915129526,0.39950891,3096.4,3095.0,1.40648237]
[1768915129825,0.39950891,3096.3,3095.0,1.40648237]
[1768915130125,1.61396583,3096.5,3095.0,1.40648237]
[1768915130325,0.39951855,3096.4,3095.0,1.40648237]
[1768915130525,0.39951855,3096.3,3095.0,1.40648237]
[1768915130720,1.61396583,3096.5,3095.0,1.40648237]
[1768915130918,1.45325125,3096.4,3095.0,1.40648237]
[1768915131118,0.39956887,3096.3,3095.0,1.40648237]
[1768915131326,1.61396583,3096.5,3095.0,1.40648237]
[1768915131527,2.90588729,3096.4,3094.9,2.17]
[1768915131723,0.39964216,3096.3,3094.9,2.17]
[1768915131928,1.45236583,3096.2,3094.8,2.169]
[1768915133420,0.1616,3096.5,3094.8,3.52727042]
[1768915133624,1.4538793,3096.4,3094.8,3.52727042]
[1768915133824,0.39974044,3096.3,3094.8,3.52727042]
[1768915134025,0.1616,3096.5,3094.8,3.52727042]
[1768915134225,1.45388227,3096.4,3094.8,3.52727042]
[1768915134428,0.39974127,3096.3,3094.8,3.52727042]
[1768915134733,0.39974127,3096.2,3094.8,3.52727042]
[1768915134934,0.1616,3096.5,3094.8,3.52727042]
[1768915135134,1.4541677,3096.4,3094.8,3.52727042]
[1768915135322,1.45445486,3096.3,3094.8,3.52727042]
[1768915135527,0.3998194,3096.2,3094.8,3.52727042]
[1768915135728,0.1616,3096.5,3094.8,3.52727042]
[1768915136027,1.45456319,3096.4,3094.8,3.52727042]
[1768915136228,1.45456319,3096.3,3094.8,3.52727042]
[1768915136424,0.39992779,3096.2,3094.8,3.52727042]
[1768915136624,1.61575136,3096.5,3094.8,3.52727042]
[1768915136830,1.45530818,3096.4,3094.8,3.52727042]
[1768915137029,1.4553069,3096.3,3094.8,3.52727042]
[1768915137233,0.40013155,3096.2,3094.8,3.52727042]
[1768915137529,0.40015266,3096.1,3094.8,3.52727042]
[1768915137732,1.45415136,3096.3,3094.8,1.35827042]
[1768915138034,2.90829469,3096.2,3094.8,1.35827042]
[1768915138234,0.40014628,3096.1,3094.8,1.35827042]
[1768915140632,0.16158,3096.9,3095.1,1.51995042]
[1768915140935,1.45389554,3096.8,3095.1,1.51995042]
[1768915141136,1.45389554,3096.7,3095.1,1.51995042]
[1768915141338,1.45389554,3096.6,3095.2,2.167]
[1768915141535,0.40007542,3096.5,3095.2,2.167]
[1768915141725,1.45415136,3096.7,3095.2,2.167]
[1768915141929,1.45301347,3096.6,3095.2,2.167]
[1768915142140,0.39947919,3096.5,3095.2,2.167]
[1768915142345,1.45415136,3096.7,3095.2,2.167]
[1768915142539,0.39941023,3096.6,3095.2,2.167]
[1768915142743,0.39941023,3096.5,3095.2,2.167]
[1768915143038,1.45415136,3096.7,3095.2,2.167]
[1768915143241,0.39941189,3096.6,3095.2,2.167]
[1768915143438,1.45415136,3096.7,3095.2,2.167]
[1768915143641,0.39935442,3096.6,3095.2,2.167]
[1768915143840,1.45415136,3096.7,3095.2,2.167]
[1768915144045,0.39935318,3096.6,3095.2,2.167]
[1768915144230,1.45415136,3096.7,3095.2,2.167]
[1768915144435,0.39931404,3096.6,3095.3,1.35827042]
[1768915144634,1.45415136,3096.7,3095.3,1.35827042]
[1768915144835,0.39930648,3096.6,3095.3,1.35827042]
[1768915145035,0.16158,3096.9,3095.3,1.35827042]
[1768915145242,1.44351673,3096.8,3095.3,1.35827042]
[1768915145438,0.39937032,3096.7,3095.3,1.35827042]
[1768915145644,0.39937032,3096.6,3095.3,1.35827042]
[1768915145843,0.16158,3096.9,3095.3,1.35827042]
[1768915146044,1.44355576,3096.8,3095.3,1.35827042]
[1768915146247,0.39938175,3096.7,3095.3,1.35827042]
[1768915146544,0.16158,3096.9,3095.3,1.35827042]
[1768915146545,0.39938175,3096.6,3095.3,1.35827042]
[1768915146738,0.16158,3096.9,3095.3,1.35827042]
[1768915146935,1.44344881,3096.8,3095.3,1.35827042]
[1768915147140,1.45415136,3097.1,3095.3,1.35827042]
[1768915147141,1.45415136,3097.1,3095.3,1.51994042]
[1768915147443,1.44296908,3097.0,3095.3,1.51994042]
[1768915147750,0.39938106,3096.9,3095.3,1.51994042]
[1768915147946,1.45415136,3097.1,3095.3,1.51994042]
[1768915148140,0.39935084,3097.0,3095.3,1.51994042]
[1768915148441,1.45415136,3097.1,3095.6,1.35827042]
[1768915148646,0.39924987,3097.0,3095.6,1.35827042]
[1768915148847,1.45415136,3097.1,3095.6,1.35827042]
[1768915149045,0.39924969,3097.0,3095.6,1.35827042]
[1768915149248,1.45415136,3097.1,3095.6,1.35827042]
[1768915149444,0.39918189,3097.0,3095.6,1.35827042]
[1768915149644,1.45415136,3097.1,3095.6,1.35827042]
[1768915149833,0.39917009,3097.0,3095.6,1.35827042]
[1768915150039,1.45415136,3097.1,3095.6,1.35827042]
[1768915150247,0.39916888,3097.0,3095.6,1.35827042]
[1768915150448,1.45415136,3097.1,3095.6,1.35827042]
[1768915150649,0.3991027,3097.0,3095.6,1.35827042]
[1768915150847,1.45415136,3097.1,3095.6,1.35827042]
[1768915151148,0.39910097,3097.0,3095.6,1.35827042]
[1768915151449,1.45415136,3097.1,3095.6,1.35827042]
[1768915151645,0.39904924,3097.0,3095.6,1.35827042]
[1768915151847,1.45415136,3097.1,3095.6,1.35827042]
[1768915152051,0.39904917,3097.0,3095.6,1.35827042]
[1768915152246,1.45415136,3097.1,3095.6,1.35827042]
[1768915152445,0.39896569,3097.0,3095.6,1.35827042]
[1768915152646,1.45415136,3097.1,3095.6,1.35827042]
[1768915152947,0.3989522,3097.0,3095.6,1.35827042]
[1768915153148,1.45415136,3097.1,3095.6,1.35827042]
[1768915153346,0.39895198,3097.0,3095.6,1.35827042]
[1768915153547,1.45415136,3097.1,3095.6,1.35827042]
[1768915153747,0.39886182,3097.0,3095.6,1.35827042]
[1768915154050,1.45415136,3097.1,3095.6,1.35827042]
[1768915154250,0.39886157,3097.0,3095.6,1.35827042]
[1768915154551,1.45415136,3097.1,3095.6,1.35827042]
[1768915154748,0.39883271,3097.0,3095.6,1.35827042]
[1768915154948,1.45415136,3097.1,3095.6,1.35827042]
[1768915155146,1.45415136,3096.9,3095.2,1.35827042]
[1768915155349,1.45415136,3096.9,3095.3,5.396]
[1768915157556,1.45415136,3096.9,3095.3,6.75427042]
[1768915158649,1.45415136,3096.9,3095.3,1.35827042]
[1768915158951,1.45415136,3096.9,3095.3,3.52127042]
[1768915162856,1.45415136,3096.9,3095.4,1.22551749]
[1768915162857,1.45415136,3096.8,3095.4,1.22551749]
[1768915164457,2.67966885,3096.8,3095.4,1.22551749]
[1768915164755,1.35074341,3096.7,3095.3,3.38851749]
[1768915164945,1.35074341,3096.7,3094.9,1.51996042]
[1768915165152,1.35074341,3096.7,3095.2,1.22551749]
[1768915166160,1.35074341,3096.7,3095.2,3.38651749]
[1768915168848,1.35074341,3096.7,3095.5,1.22551749]
[1768915176264,1.22551749,3095.8,3094.5,5.80327983]
[1768915176465,0.00416106,3095.8,3094.6,2.159]
[1768915176765,0.00416106,3095.8,3094.6,3.52730575]
[1768915177165,0.00416106,3095.8,3094.8,1.22551749]
[1768915179561,0.00416106,3095.8,3094.8,2.59382324]
[1768915179757,0.00416106,3095.8,3094.9,1.36830575]
[1768915179963,0.00416106,3095.8,3095.1,1.22551749]
[1768915182069,0.1616,3096.5,3095.1,2.59382324]
[1768915182868,0.16445644,3096.5,3095.1,2.59382324]
[1768915183071,0.39859132,3096.4,3095.1,2.59382324]
[1768915183269,0.16445644,3096.5,3095.1,2.59382324]
[1768915183468,0.39857847,3096.4,3095.1,2.59382324]
[1768915183669,0.16445644,3096.5,3095.1,2.59382324]
[1768915183872,0.3985789,3096.4,3095.1,2.59382324]
[1768915184071,1.64607506,3096.5,3095.1,1.36830575]
[1768915184660,1.64607506,3096.5,3095.3,1.22551749]
[1768915184873,0.39854567,3096.4,3095.3,1.22551749]
[1768915185076,1.64607506,3096.5,3095.3,1.22551749]
[1768915186872,0.39849872,3096.4,3095.3,1.22551749]
[1768915187068,1.64607506,3096.5,3095.3,1.22551749]
[1768915187268,0.39849918,3096.4,3095.3,1.22551749]
[1768915187470,1.64607506,3096.5,3095.3,1.22551749]
[1768915187768,0.39849932,3096.4,3095.3,1.22551749]
[1768915187968,1.64607506,3096.5,3095.3,1.22551749]
[1768915188176,0.39848419,3096.4,3095.3,1.22551749]
[1768915188569,1.64607506,3096.5,3095.3,1.22551749]
[1768915189170,0.3985531,3096.4,3095.3,1.22551749]
[1768915189366,1.64607506,3096.5,3095.1,2.59382324]
[1768915189572,1.48161862,3096.3,3095.1,1.22551749]
[1768915189877,1.48161862,3096.3,3094.9,1.22551749]
[1768915190578,1.48161862,3096.3,3094.9,2.69897382]
[1768915190975,0.16445644,3096.5,3095.0,1.47345633]
[1768915191281,0.39869315,3096.4,3095.0,1.47345633]
[1768915191480,0.16445644,3096.5,3095.0,1.47345633]
[1768915191680,0.39871706,3096.4,3095.0,1.47345633]
[1768915191879,0.16445644,3096.5,3095.0,1.47345633]
[1768915192080,0.39871823,3096.4,3095.0,1.47345633]
[1768915192281,0.16445644,3096.5,3095.2,1.22551749]
[1768915193477,0.16445644,3096.5,3095.2,2.63077367]
[1768915193885,0.00285644,3096.5,3095.2,2.63077367]
[1768915194075,0.00285644,3096.5,3095.5,1.22551749]
[1768915196082,0.00285644,3096.5,3095.2,2.63077367]
[1768915196894,0.00285644,3096.5,3095.3,1.40525618]
[1768915200296,1.41474694,3096.5,3095.0,0.16168]
[1768915200499,1.41474694,3096.5,3095.0,3.54319749]
[1768915201599,1.41474694,3096.5,3094.9,1.40525618]
[1768915201600,1.22551749,3096.3,3094.9,1.40525618]
[1768915201799,1.57635694,3096.5,3094.2,3.236]
[1768915201800,1.22551749,3095.7,3094.5,1.57001319]
[1768915202000,1.22551749,3095.7,3094.5,1.40830319]
[1768915202304,2.63740799,3095.7,3094.5,0.00304701]
[1768915202499,1.4118905,3095.6,3094.5,0.00304701]
[1768915204900,2.63740799,3095.5,3094.5,0.00304701]
[1768915205103,1.22551749,3095.2,3093.9,2.156]
[1768915205905,1.22551749,3095.3,3093.9,2.156]
[1768915206108,1.22551749,3095.3,3093.9,2.15994284]
[1768915206312,2.63740799,3095.1,3093.9,0.00394284]
[1768915206500,2.63740799,3095.0,3093.9,0.00394284]
[1768915207006,2.63740799,3094.7,3093.9,0.00394284]
[1768915207507,1.4118905,3094.6,3093.9,0.00394284]
[1768915209108,1.4118905,3094.6,3093.3,1.22551749]
[1768915210008,1.4118905,3094.6,3093.2,3.233]
[1768915210313,1.22551749,3094.4,3093.2,3.23544466]
[1768915210608,1.22551749,3094.4,3093.2,0.00244466]
[1768915211709,2.63740799,3094.4,3093.2,0.00244466]